fUST/lending_fUST_20260126
["ID","MTS","AMOUNT","RATE_DAILY","PERIOD"]
[403604454,1769415032758,-729.0,0.0001336,2]
[403604456,1769415032767,-500.0,0.00013369,2]
[403604458,1769415032776,-1328.190509,0.0001339,28]
[403604460,1769415032785,-301630.70709896,0.000134,2]
[403604463,1769415032797,-1223.29296826,0.000134,2]
[403604472,1769415038179,-1408.94448266,0.000134,2]
[403605144,1769415470296,291.691,0.0001,10]
[403605238,1769416238231,-150.0,9.277e-05,2]
[403605240,1769416238241,-227.416128,9.891e-05,2]
[403605242,1769416238251,-300.0,0.00010954,2]
[403605244,1769416238261,-2423.01340545,0.00010955,2]
[403605246,1769416238273,-4269.35212161,0.00010955,2]
[403605248,1769416238284,-2088.03168191,0.00010955,2]
[403605249,1769416238295,-335.93502063,0.00010955,2]
[403605250,1769416238304,-1748.49441683,0.00011174,2]
[403605252,1769416238315,-865.64963724,0.00011174,2]
[403605294,1769416240452,-2423.96670254,0.00011174,2]
[403605296,1769416240462,-300.0,0.00011174,2]
[403605298,1769416240472,-300.0,0.00011174,2]
[403605300,1769416240481,-300.0,0.00011174,2]
[403605302,1769416240490,-300.0,0.00011174,2]
[403605304,1769416240500,-300.0,0.00011174,2]
[403605306,1769416240509,-300.0,0.00011174,2]
[403605308,1769416240519,-300.0,0.00011174,2]
[403605310,1769416240532,-300.0,0.00011174,2]
[403605312,1769416240541,-300.0,0.00011174,2]
[403605314,1769416240550,-300.0,0.00011174,2]
[403605316,1769416240560,-300.0,0.00011174,2]
[403605318,1769416240571,-300.0,0.00011174,2]
[403605320,1769416240581,-300.0,0.00011174,2]
[403605323,1769416240590,-300.0,0.00011174,2]
[403605325,1769416240609,-300.0,0.00011174,2]
[403605327,1769416240619,-268.35103104,0.00011891,2]
[403605329,1769416240628,-420.0,0.00012038,2]
[403605331,1769416240638,-337.00942216,0.00012254,2]
[403605333,1769416240647,-197.03960453,0.00012254,2]
[403605334,1769416240657,-500.0,0.00012254,2]
[403605335,1769416240667,-445.10213232,0.00012254,2]
[403605336,1769416240677,-500.0,0.00012254,2]
[403605337,1769416240687,-600.0,0.00012498,2]
[403605338,1769416240698,-1411.8681245,0.00012897,2]
[403605339,1769416240708,-633.10665243,0.000129,2]
[403605340,1769416240718,-470.7968492,0.000131,2]
[403605341,1769416240727,-251.35773781,0.00013126,2]
[403605342,1769416240737,-250.0,0.00013126,2]
[403605343,1769416240746,-238.07744408,0.00013126,2]
[403605344,1769416240756,-250.51062692,0.00013126,2]
[403605345,1769416240766,-150.0,0.00013126,2]
[403605346,1769416240776,-150.0,0.00013126,2]
[403605347,1769416240786,-150.0,0.00013126,2]
[403605348,1769416240796,-150.0,0.00013126,2]
[403605349,1769416240806,-500.0,0.00013161,2]
[403605350,1769416240815,-1041.66666667,0.00013229,2]
[403605351,1769416240827,-294.0,0.00013229,2]
[403605352,1769416240837,-153.3054578,0.00013232,2]
[403605353,1769416240847,-230.15597829,0.00013232,2]
[403605354,1769416240857,-500.0,0.00013273,2]
[403605355,1769416240868,-500.0,0.00013273,2]
[403605356,1769416240878,-500.0,0.00013273,2]
[403605357,1769416240888,-500.0,0.00013273,2]
[403605358,1769416240898,-500.0,0.00013273,2]
[403605359,1769416240908,-378.5669065,0.00013288,2]
[403605360,1769416240917,-500.0,0.00013298,2]
[403605361,1769416240927,-378.5669065,0.000133,2]
[403605362,1769416240937,-1369.0,0.00013377,2]
[403605363,1769416240947,-2150.0,0.00013377,2]
[403605365,1769416240956,-630.0,0.00013377,2]
[403605367,1769416240965,-715.0,0.00013377,2]
[403605369,1769416240976,-179.901,0.00013377,2]
[403605371,1769416240986,-418.0,0.00013377,2]
[403605373,1769416240996,-554.66423598,0.000134,2]
[403605375,1769416241006,-382.3548691,0.000134,2]
[403605377,1769416241015,-336.337,0.000134,2]
[403605379,1769416241025,-30531.36663893,0.000134,2]
[403605813,1769416246413,-150.0,8.276e-05,2]
[403605814,1769416246422,-150.0,9.029e-05,2]
[403605815,1769416246431,-198.28,9.781e-05,2]
[403605816,1769416246441,-264.38,0.00010534,2]
[403605817,1769416246450,-330.47,0.00011286,2]
[403605818,1769416246459,-9400.80949001,0.000134,2]
[403605819,1769416246611,-396.57,0.00012038,2]
[403605820,1769416246620,-25481.74559067,0.000134,2]
[403605837,1769416550842,-476.06589117,0.00034694,120]
[403605838,1769416550867,-1000.0,0.00034694,120]
[403605839,1769416550890,-1000.0,0.00034694,120]
[403605840,1769416550912,-2000.0,0.00034694,120]
[403605841,1769416550934,-1000.0,0.00034694,120]
[403605842,1769416550957,-1000.0,0.00034694,120]
[403605843,1769416550980,-1000.0,0.00034694,120]
[403605844,1769416551001,-1001.502614,0.00034694,120]
[403605845,1769416551023,-1000.0,0.00034694,120]
[403605846,1769416551046,-1000.0,0.00034694,120]
[403605847,1769416551067,-1000.0,0.00034694,120]
[403605848,1769416551091,-1139.2365492,0.00034694,120]
[403605849,1769416551117,-847.90667112,0.00034694,30]
[403605850,1769416551140,-272.47363755,0.00034694,60]
[403605851,1769416551161,-545.87012,0.00034694,120]
[403605852,1769416551183,-161.59662692,0.00034694,120]
[403605853,1769416551205,-189.5980492,0.00034694,30]
[403605854,1769416551227,-1173.46973668,0.00034694,60]
[403605855,1769416551249,-407.83265515,0.00034694,120]
[403605856,1769416551270,-222.09135991,0.00034694,30]
[403605857,1769416551291,-470.65187514,0.00034694,120]
[403605858,1769416551312,-846.35495147,0.00034694,30]
[403605859,1769416551334,-197.59308365,0.00034694,120]
[403605860,1769416551357,-1005.68080843,0.00034694,30]
[403605861,1769416551379,-2152.09147926,0.00034694,30]
[403605862,1769416551401,-186.76492434,0.00034694,30]
[403605863,1769416551422,-307.2366963,0.00034694,120]
[403605864,1769416551445,-172.86696262,0.00034694,31]
[403605865,1769416551466,-603.43202032,0.00034694,30]
[403605866,1769416551488,-2052.00773321,0.00034694,120]
[403605867,1769416551510,-1042.08581563,0.00034694,120]
[403605868,1769416551532,-718.53295055,0.00034694,120]
[403605869,1769416551555,-309.3762,0.00034694,120]
[403605870,1769416551577,-309.3762,0.00034694,120]
[403605871,1769416551599,-309.3762,0.00034694,120]
[403605872,1769416551625,-29064.10139974,0.00034694,90]
[403605873,1769416551648,-1328.52324238,0.00034694,61]
[403605874,1769416551673,-20000.0,0.00034694,30]
[403605875,1769416551694,-202659.04862731,0.00034694,120]
[403605876,1769416551716,-9800.0,0.00034694,30]
[403605877,1769416551739,-3000.0,0.00034694,120]
[403605878,1769416551761,-1151.74805134,0.00034694,120]
[403605879,1769416551784,-276.46788291,0.00034694,30]
[403605880,1769416551806,-630.5107586,0.00034694,120]
[403605881,1769416551829,-59700.30496036,0.00034694,120]
[403605882,1769416551852,-500.0,0.00034694,120]
[403605883,1769416551875,-3000.0,0.00034694,120]
[403605884,1769416551898,-3809.0,0.00034694,120]
[403605885,1769416551931,-5156.0,0.00034694,120]
[403605886,1769416551959,-3163.99163045,0.00034694,120]
[403605887,1769416551983,-208.3287827,0.00034694,120]
[403605888,1769416552008,-220.0,0.00034694,120]
[403605889,1769416552033,-352359.991621,0.00034694,60]
[403605890,1769416552058,-1214.48754755,0.00034694,120]
[403605891,1769416552082,-3791.80028521,0.00034694,30]
[403605892,1769416552106,-780.24772713,0.00034694,30]
[403605893,1769416552130,-267.32291344,0.00034694,60]
[403605894,1769416552153,-784.36249034,0.00034694,120]
[403605895,1769416552176,-235.52343484,0.00034694,30]
[403605896,1769416552199,-242.82901662,0.00034694,30]
[403605897,1769416552223,-5899.09392782,0.00034694,30]
[403605898,1769416552248,-176.25142046,0.00034694,30]
[403605899,1769416552273,-256.06162549,0.00034694,33]
[403605900,1769416552298,-362.97906742,0.00034694,30]
[403605901,1769416552325,-1996.0,0.00034694,30]
[403605902,1769416552349,-13709.63398047,0.00034694,30]
[403605903,1769416552373,-211.68365316,0.00034694,60]
[403605904,1769416552399,-573.0,0.00034694,120]
[403605905,1769416552425,-500.0,0.00034694,30]
[403605906,1769416552450,-500.0,0.00034694,30]
[403605907,1769416552480,-500.0,0.00034694,30]
[403605908,1769416552507,-500.0,0.00034694,30]
[403605909,1769416552535,-500.0,0.00034694,30]
[403605910,1769416552558,-500.0,0.00034694,30]
[403605911,1769416552581,-500.0,0.00034694,30]
[403605912,1769416552608,-500.0,0.00034694,30]
[403605913,1769416552631,-500.23123752,0.00034694,30]
[403605914,1769416552654,-4177.60396741,0.00034694,120]
[403605915,1769416552679,-267.20837322,0.00034694,120]
[403605916,1769416552704,-178.78041582,0.00034694,120]
[403605917,1769416552728,-168.47509375,0.00034694,120]
[403605918,1769416552752,-168.47509375,0.00034694,120]
[403605919,1769416552776,-168.47509375,0.00034694,120]
[403605920,1769416552799,-168.47509375,0.00034694,120]
[403605921,1769416552822,-168.47509375,0.00034694,120]
[403605922,1769416552848,-502.05102428,0.00034694,120]
[403605923,1769416552872,-168.47509373,0.00034694,120]
[403605924,1769416552895,-501.88701622,0.00034694,120]
[403605925,1769416552918,-160.0,0.00034694,120]
[403605926,1769416552943,-200.0,0.00034694,120]
[403605927,1769416552967,-200.0,0.00034694,120]
[403605928,1769416552993,-200.0,0.00034694,120]
[403605929,1769416553189,-200.0,0.00034694,120]
[403605930,1769416553215,-200.0,0.00034694,120]
[403605931,1769416553238,-200.0,0.00034694,120]
[403605932,1769416553267,-200.0,0.00034694,120]
[403605933,1769416553292,-200.0,0.00034694,120]
[403605934,1769416553316,-200.0,0.00034694,120]
[403605935,1769416553340,-200.0,0.00034694,120]
[403605936,1769416553364,-200.0,0.00034694,120]
[403605937,1769416553388,-200.0,0.00034694,120]
[403605938,1769416553413,-200.0,0.00034694,120]
[403605939,1769416553438,-200.0,0.00034694,120]
[403605940,1769416553464,-200.0,0.00034694,120]
[403605941,1769416553487,-200.0,0.00034694,120]
[403605942,1769416553515,-200.0,0.00034694,120]
[403605943,1769416553539,-200.0,0.00034694,120]
[403605944,1769416553562,-200.0,0.00034694,120]
[403605945,1769416553591,-212.75710882,0.00034694,120]
[403605946,1769416553618,-358.28575975,0.00034694,120]
[403605947,1769416553642,-500.0,0.00034694,120]
[403605948,1769416553668,-500.0,0.00034694,120]
[403605949,1769416553693,-500.0,0.00034694,120]
[403605950,1769416553721,-500.0,0.00034694,120]
[403605951,1769416553746,-498.36764887,0.00034694,120]
[403605952,1769416553770,-500.68327405,0.00034694,120]
[403605953,1769416553794,-431.7349034,0.00034694,120]
[403605954,1769416553819,-531.62354234,0.00034694,120]
[403605955,1769416553842,-501.03943728,0.00034694,120]
[403605956,1769416553873,-500.41024246,0.00034694,120]
[403605957,1769416553898,-500.0,0.00034694,120]
[403605958,1769416553921,-500.0,0.00034694,120]
[403605959,1769416553947,-500.0,0.00034694,120]
[403605960,1769416553972,-500.0,0.00034694,120]
[403605961,1769416554001,-500.0,0.00034694,120]
[403605962,1769416554026,-500.0,0.00034694,120]
[403605963,1769416554050,-500.0,0.00034694,120]
[403605964,1769416554077,-500.0,0.00034694,120]
[403605965,1769416554102,-500.0,0.00034694,120]
[403605966,1769416554126,-178.74594232,0.00034694,120]
[403605967,1769416554150,-160.0,0.00034694,120]
[403605968,1769416554175,-501.68467843,0.00034694,120]
[403605969,1769416554199,-283.106495,0.00034694,40]
[403605970,1769416554224,-250.0,0.00034694,30]
[403605971,1769416554248,-250.0,0.00034694,30]
[403605972,1769416554276,-250.0,0.00034694,30]
[403605973,1769416554301,-250.0,0.00034694,30]
[403605974,1769416554325,-250.0,0.00034694,30]
[403605975,1769416554350,-250.0,0.00034694,30]
[403605976,1769416554374,-250.0,0.00034694,30]
[403605977,1769416554398,-250.0,0.00034694,30]
[403605978,1769416554421,-250.0,0.00034694,30]
[403605979,1769416554446,-250.0,0.00034694,30]
[403605980,1769416554471,-346.126402,0.00034694,30]
[403605981,1769416554495,-501.8095577,0.00034694,120]
[403605982,1769416554522,-267.415,0.00034694,120]
[403605983,1769416554546,-500.0,0.00034694,120]
[403605984,1769416554572,-500.0,0.00034694,120]
[403605985,1769416554596,-500.0,0.00034694,120]
[403605986,1769416554623,-500.0,0.00034694,120]
[403605987,1769416554649,-500.0,0.00034694,120]
[403605988,1769416554674,-500.0,0.00034694,120]
[403605989,1769416554698,-500.0,0.00034694,120]
[403605990,1769416554723,-500.0,0.00034694,120]
[403605991,1769416554748,-500.0,0.00034694,120]
[403605992,1769416554771,-500.0,0.00034694,120]
[403605993,1769416554795,-500.0,0.00034694,120]
[403605994,1769416554820,-500.0,0.00034694,120]
[403605995,1769416554844,-500.0,0.00034694,120]
[403605996,1769416554868,-500.0,0.00034694,120]
[403605997,1769416554895,-500.0,0.00034694,120]
[403605998,1769416554921,-500.0,0.00034694,120]
[403605999,1769416554945,-500.0,0.00034694,120]
[403606000,1769416554971,-500.0,0.00034694,120]
[403606001,1769416554996,-500.0,0.00034694,120]
[403606002,1769416555022,-500.0,0.00034694,120]
[403606003,1769416555048,-529.47261769,0.00034694,120]
[403606004,1769416555079,-500.0,0.00034694,120]
[403606005,1769416555105,-500.0,0.00034694,120]
[403606006,1769416555130,-500.0,0.00034694,120]
[403606007,1769416555155,-500.0,0.00034694,120]
[403606008,1769416555179,-500.0,0.00034694,120]
[403606009,1769416555204,-500.0,0.00034694,120]
[403606010,1769416555234,-500.0,0.00034694,120]
[403606011,1769416555260,-500.0,0.00034694,120]
[403606012,1769416555286,-500.0,0.00034694,120]
[403606013,1769416555311,-500.0,0.00034694,120]
[403606014,1769416555336,-500.0,0.00034694,120]
[403606015,1769416555361,-500.0,0.00034694,120]
[403606016,1769416555384,-500.0,0.00034694,120]
[403606017,1769416555408,-500.0,0.00034694,120]
[403606018,1769416555432,-500.0,0.00034694,120]
[403606019,1769416555455,-500.0,0.00034694,120]
[403606020,1769416555479,-500.0,0.00034694,120]
[403606021,1769416555503,-500.0,0.00034694,120]
[403606022,1769416555527,-417.09294183,0.00034694,120]
[403606023,1769416555676,-508.07243177,0.00034694,120]
[403606024,1769416555703,-500.0,0.00034694,120]
[403606025,1769416555729,-500.0,0.00034694,120]
[403606026,1769416555753,-500.0,0.00034694,120]
[403606027,1769416555776,-500.0,0.00034694,120]
[403606028,1769416555800,-500.0,0.00034694,120]
[403606029,1769416555824,-500.0,0.00034694,120]
[403606030,1769416555848,-500.0,0.00034694,120]
[403606031,1769416555871,-500.0,0.00034694,120]
[403606032,1769416555895,-500.0,0.00034694,120]
[403606033,1769416555919,-500.0,0.00034694,120]
[403606034,1769416555942,-500.0,0.00034694,120]
[403606035,1769416555967,-500.0,0.00034694,120]
[403606036,1769416555993,-500.0,0.00034694,120]
[403606037,1769416556016,-500.0,0.00034694,120]
[403606038,1769416556042,-500.0,0.00034694,120]
[403606039,1769416556067,-500.0,0.00034694,120]
[403606040,1769416556091,-500.0,0.00034694,120]
[403606041,1769416556117,-500.0,0.00034694,120]
[403606042,1769416556140,-500.0,0.00034694,120]
[403606043,1769416556164,-354.65185902,0.00034694,120]
[403606044,1769416556189,-500.0,0.00034694,120]
[403606045,1769416556214,-500.0,0.00034694,120]
[403606046,1769416556240,-500.0,0.00034694,120]
[403606047,1769416556265,-500.0,0.00034694,120]
[403606048,1769416556290,-500.0,0.00034694,120]
[403606049,1769416556316,-500.0,0.00034694,120]
[403606050,1769416556344,-500.0,0.00034694,120]
[403606051,1769416556368,-500.0,0.00034694,120]
[403606052,1769416556393,-500.0,0.00034694,120]
[403606053,1769416556418,-500.0,0.00034694,120]
[403606054,1769416556446,-500.0,0.00034694,120]
[403606055,1769416556472,-500.0,0.00034694,120]
[403606056,1769416556499,-500.0,0.00034694,120]
[403606057,1769416556524,-500.0,0.00034694,120]
[403606058,1769416556549,-500.0,0.00034694,120]
[403606059,1769416556575,-359.44875141,0.00034694,120]
[403606060,1769416556600,-183.0,0.00034694,120]
[403606061,1769416556627,-500.0,0.00034694,120]
[403606062,1769416556654,-501.26550656,0.00034694,120]
[403606063,1769416556680,-673.0,0.00034694,120]
[403606064,1769416556706,-673.0,0.00034694,120]
[403606065,1769416556730,-673.0,0.00034694,120]
[403606066,1769416556753,-673.0,0.00034694,120]
[403606067,1769416556777,-673.0,0.00034694,120]
[403606068,1769416556801,-673.0,0.00034694,120]
[403606069,1769416556826,-673.0,0.00034694,120]
[403606070,1769416556851,-673.0,0.00034694,120]
[403606071,1769416556874,-673.0,0.00034694,120]
[403606072,1769416556898,-673.0,0.00034694,120]
[403606073,1769416556921,-673.0,0.00034694,120]
[403606074,1769416556945,-673.0,0.00034694,120]
[403606075,1769416556969,-673.0,0.00034694,120]
[403606076,1769416556993,-673.0,0.00034694,120]
[403606077,1769416557018,-673.0,0.00034694,120]
[403606078,1769416557042,-673.0,0.00034694,120]
[403606079,1769416557069,-673.0,0.00034694,120]
[403606080,1769416557093,-673.0,0.00034694,120]
[403606081,1769416557116,-673.0,0.00034694,120]
[403606082,1769416557140,-673.0,0.00034694,120]
[403606083,1769416557164,-673.0,0.00034694,120]
[403606084,1769416557188,-673.0,0.00034694,120]
[403606085,1769416557213,-673.0,0.00034694,120]
[403606086,1769416557236,-673.15816652,0.00034694,120]
[403606087,1769416557261,-500.0,0.00034694,120]
[403606088,1769416557526,3306.968478,0.00034694,30]
[403606089,1769416557554,2327.83012526,0.00034694,30]
[403606090,1769416557595,2804.27884191,0.00034694,30]
[403606091,1769416575085,-175.51118867,0.00021784,120]
[403606092,1769416575109,-202.98668336,0.0002183,120]
[403606093,1769416575132,-167.53795519,0.0002184,120]
[403606094,1769416575159,-211.64112895,0.00021934,120]
[403606095,1769416575185,-181.98452891,0.0002235,120]
[403606096,1769416575211,-156.50653843,0.00023016,120]
[403606097,1769416575237,-254.90502812,0.00023502,120]
[403606098,1769416575262,-188.51787356,0.00023853,120]
[403606099,1769416575292,-184.54813476,0.00023973,120]
[403606100,1769416575319,-151.01926171,0.00025,120]
[403606101,1769416575348,-1000.0,0.00027,120]
[403606102,1769416575373,-183.79988374,0.0002739,120]
[403606103,1769416575396,-500.0,0.00027397,120]
[403606104,1769416575421,-193.45934594,0.000275,120]
[403606105,1769416575448,-1257.80356366,0.00028,120]
[403606106,1769416575472,-1000.0,0.00028,120]
[403606107,1769416575495,-605.29413008,0.0002876,120]
[403606108,1769416575517,-386.37513093,0.00028767,120]
[403606109,1769416575540,-1709.15498988,0.00029,120]
[403606110,1769416575563,-946.35725712,0.000295,120]
[403606111,1769416575587,-200.0,0.0003,120]
[403606112,1769416575612,-1893.16517844,0.0003,120]
[403606113,1769416575642,-706.14363425,0.0003,120]
[403606114,1769416575667,-266.51165995,0.0003,120]
[403606115,1769416575692,-1000.0,0.0003,120]
[403606116,1769416575717,-576.14778428,0.0003,120]
[403606117,1769416575742,-3297.34577554,0.0003,120]
[403606118,1769416575769,-332.1131088,0.0003,120]
[403606119,1769416575795,-408.3766,0.00030127,120]
[403606120,1769416575821,-1408.83173182,0.0003013,120]
[403606121,1769416575845,-1939.06357022,0.00030136,120]
[403606122,1769416575868,-1287.07,0.00030136,120]
[403606123,1769416575892,-500.0,0.00030137,120]
[403606124,1769416575918,-881.647803,0.00030137,120]
[403606125,1769416584032,456.5353,0.00030127,120]
[403606126,1769416592154,309.3762,0.00030127,120]
[403606127,1769416601769,2786.01,0.000301,120]
[403606129,1769416625929,408.4532,0.00030127,120]
[403606130,1769416630557,-309.4343,0.00034694,120]
[403606131,1769416630580,-309.4343,0.00034694,120]
[403606132,1769416630603,-309.4343,0.00034694,120]
[403606133,1769416630628,-300.0,0.00034694,120]
[403606134,1769416630654,-300.0,0.00034694,120]
[403606135,1769416630677,-185.47641431,0.00034694,120]
[403606136,1769416630700,-267.415,0.00034694,120]
[403606137,1769416630724,-431.7349034,0.00034694,120]
[403606138,1769416630866,827.0,0.00034694,120]
[403606139,1769416634117,309.4343,0.00034694,120]
[403606140,1769416634177,309.4343,0.00034694,120]
[403606141,1769416634235,309.4343,0.00034694,120]
[403606142,1769416636732,502.05102428,0.00034694,120]
[403606143,1769416639421,500.0,0.00034694,120]
[403606144,1769416639661,500.0,0.00034694,120]
[403606145,1769416639901,500.0,0.00034694,120]
[403606147,1769416640152,500.0,0.00034694,120]
[403606148,1769416640394,500.0,0.00034694,120]
[403606149,1769416640634,500.0,0.00034694,120]
[403606150,1769416640891,500.0,0.00034694,120]
[403606151,1769416641487,500.0,0.00034694,120]
[403606152,1769416641797,500.0,0.00034694,120]
[403606153,1769416641988,500.0,0.00034694,120]
[403606154,1769416642247,500.0,0.00034694,120]
[403606155,1769416642277,277.6424,0.00034694,120]
[403606156,1769416642496,500.0,0.00034694,120]
[403606157,1769416642731,500.0,0.00034694,120]
[403606158,1769416643000,500.0,0.00034694,120]
[403606159,1769416643238,500.0,0.00034694,120]
[403606160,1769416643478,500.0,0.00034694,120]
[403606161,1769416643710,500.0,0.00034694,120]
[403606162,1769416643949,500.0,0.00034694,120]
[403606163,1769416644182,417.09294183,0.00034694,120]
[403606164,1769416647121,4999.99999886,0.00034694,120]
[403606165,1769416649990,205.61683434,0.00034694,120]
[403606166,1769416650019,189.83978234,0.00034694,120]
[403606167,1769416650046,175.51118867,0.00034694,120]
[403606168,1769416650072,191.91327742,0.00034694,120]
[403606169,1769416650282,500.0,0.00034694,120]
[403606170,1769416650383,277.6424,0.00034694,120]
[403606171,1769416650450,189.83978234,0.00034694,120]
[403606172,1769416650478,205.61683434,0.00034694,120]
[403606173,1769416650535,500.0,0.00034694,120]
[403606174,1769416650772,500.0,0.00034694,120]
[403606175,1769416650814,189.83978234,0.00034694,120]
[403606176,1769416650844,205.61683434,0.00034694,120]
[403606177,1769416651007,500.0,0.00034694,120]
[403606178,1769416651194,205.61683434,0.00034694,120]
[403606179,1769416651251,500.0,0.00034694,120]
[403606180,1769416651484,500.0,0.00034694,120]
[403606181,1769416651558,205.61683434,0.00034694,120]
[403606182,1769416651700,500.0,0.00034694,120]
[403606183,1769416651905,205.61683434,0.00034694,120]
[403606184,1769416651938,500.0,0.00034694,120]
[403606185,1769416652163,500.0,0.00034694,120]
[403606186,1769416652298,205.61683434,0.00034694,120]
[403606187,1769416652398,178.74594232,0.00034694,120]
[403606188,1769416653224,205.61683434,0.00034694,120]
[403606191,1769416678601,500.0,0.00034694,120]
[403606192,1769416682443,500.41024246,0.00034694,120]
[403606193,1769416689475,156.50653846,0.00034694,120]
[403606194,1769416705291,673.0,0.00034694,120]
[403606195,1769416705536,673.0,0.00034694,120]
[403606196,1769416705767,673.0,0.00034694,120]
[403606197,1769416706007,673.0,0.00034694,120]
[403606198,1769416706252,673.0,0.00034694,120]
[403606199,1769416706854,673.0,0.00034694,120]
[403606200,1769416707098,673.0,0.00034694,120]
[403606201,1769416707326,673.0,0.00034694,120]
[403606202,1769416707563,673.0,0.00034697,120]
[403606203,1769416707803,673.0,0.00034697,120]
[403606204,1769416708041,673.0,0.00034697,120]
[403606205,1769416708281,673.0,0.00034697,120]
[403606206,1769416708520,673.0,0.00034697,120]
[403606207,1769416708771,673.0,0.00034697,120]
[403606208,1769416709021,673.0,0.00034697,120]
[403606209,1769416709272,673.0,0.00034697,120]
[403606210,1769416709535,673.0,0.00034697,120]
[403606211,1769416709776,673.0,0.00034697,120]
[403606212,1769416710040,673.0,0.00034697,120]
[403606213,1769416710274,673.0,0.00034697,120]
[403606214,1769416710628,673.0,0.00034697,120]
[403606215,1769416710919,673.0,0.00034697,120]
[403606216,1769416711100,673.0,0.00034697,120]
[403606217,1769416711333,673.15816652,0.00034697,120]
[403606218,1769416720739,-220.60798675,8.47e-05,2]
[403606219,1769416720760,-156.12772674,8.96e-05,2]
[403606220,1769416720781,-511.58105016,9.614e-05,2]
[403606221,1769416721376,776.0,0.00034697,120]
[403606222,1769416721591,276.0,0.00034697,120]
[403606224,1769416744531,501.88701622,0.00034697,120]
[403606225,1769416779015,501.8095577,0.00034697,120]
[403606226,1769416804597,500.0,0.00034697,120]
[403606227,1769416804850,500.0,0.00034697,120]
[403606228,1769416805119,500.0,0.00034697,120]
[403606229,1769416805366,500.0,0.00034697,120]
[403606230,1769416805622,500.0,0.00034697,120]
[403606231,1769416805884,500.0,0.00034697,120]
[403606232,1769416806144,500.0,0.00034697,120]
[403606233,1769416806397,500.0,0.00034697,120]
[403606234,1769416806505,160.0,0.00034697,120]
[403606235,1769416806632,500.0,0.00034697,120]
[403606236,1769416806865,500.0,0.00034697,120]
[403606237,1769416807093,500.0,0.00034697,120]
[403606238,1769416807544,500.0,0.00034697,120]
[403606239,1769416807686,500.0,0.00034697,120]
[403606240,1769416807873,500.0,0.00034697,120]
[403606241,1769416808117,500.0,0.00034697,120]
[403606242,1769416808354,359.44875141,0.00034697,120]
[403606243,1769416824775,200.0,0.00034697,120]
[403606244,1769416825013,200.0,0.00034697,120]
[403606245,1769416825291,200.0,0.00034697,120]
[403606246,1769416825996,200.0,0.00034697,120]
[403606247,1769416826341,200.0,0.00034697,120]
[403606248,1769416826584,200.0,0.00034697,120]
[403606249,1769416826910,200.0,0.00034697,120]
[403606250,1769416827157,200.0,0.00034697,120]
[403606251,1769416827395,200.0,0.00034697,120]
[403606252,1769416827673,200.0,0.00034697,120]
[403606253,1769416827942,200.0,0.00034697,120]
[403606254,1769416828203,200.0,0.00034697,120]
[403606255,1769416828487,200.0,0.00034697,120]
[403606256,1769416828733,200.0,0.00034697,120]
[403606257,1769416828980,200.0,0.00034697,120]
[403606258,1769416829209,200.0,0.00034697,120]
[403606259,1769416829448,200.0,0.00034697,120]